fUSD/lending_fUSD_20240630
["ID","MTS","AMOUNT","RATE_DAILY","PERIOD"]
[330755840,1719755537345,-507.72,0.00015452,3]
[330755841,1719755537355,-554.44,0.00015452,3]
[330755842,1719755537365,-578.69,0.00015452,3]
[330755843,1719755537375,-500.0,0.00015452,3]
[330755844,1719755537384,-1290.65,0.00015452,3]
[330755845,1719755537394,-655.08,0.00015452,3]
[330755846,1719755537404,-812.49,0.00015452,3]
[330755847,1719755537414,-1361.14,0.00015452,3]
[330755848,1719755537424,-634.96,0.00015452,3]
[330755849,1719755537433,-500.0,0.00015452,3]
[330755850,1719755537444,-896.65,0.00015452,3]
[330755851,1719755537453,-787.92,0.00015452,3]
[330755852,1719755537463,-500.0,0.00015452,3]
[330755853,1719755537473,-500.0,0.00015452,3]
[330755854,1719755537483,-584.33,0.00015452,3]
[330755855,1719755537493,-1488.55,0.00015452,3]
[330755856,1719755537503,-1089.27,0.00015452,3]
[330755857,1719755537513,-500.0,0.00015452,3]
[330755858,1719755537522,-500.0,0.00015452,3]
[330755859,1719755537531,-160.443859,0.00015458,2]
[330755860,1719755537541,-417.83,0.00015461,2]
[330755861,1719755537551,-528.19,0.00015461,2]
[330755862,1719755537560,-708.36,0.00015461,2]
[330755863,1719755537570,-154.49,0.00015461,2]
[330755864,1719755537579,-528.19,0.00015461,2]
[330755865,1719755537588,-527.71,0.00015461,2]
[330755866,1719755537602,-4426.86,0.00015477,6]
[330755867,1719755537611,-27355.82959151,0.00015484,2]
[330755868,1719755537621,-1135.43,0.00015488,3]
[330755869,1719755537631,-1617.34,0.00015488,3]
[330755870,1719755537642,-1220.92,0.00015488,3]
[330755871,1719755537651,-529.92,0.00015488,3]
[330755872,1719755537661,-1337.79,0.00015488,3]
[330755873,1719755537675,-1162.53,0.00015488,3]
[330755874,1719755537686,-3818.29,0.0001549,3]
[330755875,1719755537696,-165.26,0.00015513,2]
[330755876,1719755537706,-2148.15,0.00015518,3]
[330755877,1719755537716,-1274.99,0.00015518,3]
[330755878,1719755537726,-1079.15,0.00015527,3]
[330755879,1719755537988,-1590.65,0.00015527,3]
[330755880,1719755537998,-1459.73,0.00015527,3]
[330755881,1719755538009,-911.31,0.00015527,3]
[330755882,1719755538020,-592.8,0.00015527,3]
[330755883,1719755538029,-830.15,0.00015527,3]
[330755884,1719755538039,-1114.89,0.00015527,3]
[330755885,1719755538048,-500.0,0.00015527,3]
[330755886,1719755538058,-967.5,0.00015527,3]
[330755887,1719755538067,-640.83,0.00015527,3]
[330755888,1719755538077,-500.0,0.00015527,3]
[330755889,1719755538087,-3839.55830547,0.00015546,2]
[330755890,1719755538096,-500.0,0.00015561,3]
[330755891,1719755538105,-500.0,0.00015561,3]
[330755892,1719755538115,-1492.12,0.00015561,3]
[330755893,1719755538124,-526.54,0.00015561,3]
[330755894,1719755538133,-518.76,0.00015561,3]
[330755895,1719755538142,-554.07,0.00015561,3]
[330755896,1719755538151,-500.0,0.00015561,3]
[330755897,1719755538160,-500.0,0.00015561,3]
[330755898,1719755538169,-302.4,0.00015561,3]
[330755899,1719755538179,-500.0,0.00015561,3]
[330755900,1719755538188,-500.0,0.00015561,3]
[330755901,1719755538197,-500.0,0.00015561,3]
[330755902,1719755538206,-1182.32,0.00015561,3]
[330755903,1719755538216,-500.0,0.00015561,3]
[330755904,1719755538225,-500.0,0.00015561,3]
[330755905,1719755538237,-500.0,0.00015561,3]
[330755906,1719755538246,-500.0,0.00015561,3]
[330755907,1719755538255,-505.0,0.00015561,3]
[330755908,1719755538264,-500.0,0.00015561,3]
[330755909,1719755538274,-561.37,0.00015561,3]
[330755910,1719755538284,-500.0,0.00015561,3]
[330755911,1719755538293,-500.0,0.00015561,3]
[330755912,1719755538302,-500.0,0.00015561,3]
[330755913,1719755538311,-900.1,0.00015561,3]
[330755914,1719755538321,-694.23,0.00015561,3]
[330755915,1719755538330,-554.87659404,0.00015561,3]
[330755916,1719755538340,-500.0,0.00015561,3]
[330755917,1719755538350,-554.48,0.00015561,3]
[330755918,1719755538360,-500.0,0.00015561,3]
[330755919,1719755538370,-500.0,0.00015561,3]
[330755920,1719755538379,-500.0,0.00015561,3]
[330755921,1719755538388,-500.0,0.00015561,3]
[330755922,1719755538398,-500.0,0.00015561,3]
[330755923,1719755538407,-500.0,0.00015561,3]
[330755924,1719755538417,-363.49685403,0.00015561,3]
[330755925,1719755538948,-353.436607,0.00013698,2]
[330755926,1719755538958,-346.78006797,0.00014794,3]
[330755927,1719755538991,-708.41999975,0.00014356,3]
[330755928,1719755539400,-328.74882659,0.00013698,3]
[330755929,1719755539410,-30.73117342,0.00013698,3]
[330755930,1719755539421,-469.26882658,0.00013698,3]
[330755931,1719755539430,-118.98772581,0.00013808,2]
[330755932,1719755539442,-234.44888119,0.00013808,2]
[330755933,1719755539451,-353.436607,0.00013808,2]
[330755934,1719755539460,-708.48,0.00013917,3]
[330755935,1719755539469,-353.436607,0.00013917,2]
[330755936,1719755539478,-353.436607,0.00013956,2]
[330755937,1719755539488,-151.058,0.0001397,2]
[330755938,1719755539497,-353.436607,0.00013989,2]
[330755939,1719755539507,-500.0,0.00014027,3]
[330755940,1719755539517,-708.48,0.00014027,3]
[330755941,1719755539527,-1835.59,0.00014136,3]
[330755942,1719755539536,-500.0,0.00014136,3]
[330755943,1719755539547,-708.48,0.00014136,3]
[330755944,1719755539557,-500.0,0.00014246,3]
[330755945,1719755539567,-1835.59,0.00014246,3]
[330755946,1719755539576,-708.48,0.00014246,3]
[330755947,1719755539586,-642.35000025,0.00014356,3]
[330755948,1719755539599,-500.0,0.00014356,3]
[330755949,1719755539609,-500.0,0.00014356,3]
[330755950,1719755539618,-708.48,0.00014356,3]
[330755951,1719755539627,-1835.59,0.00014356,3]
[330755952,1719755539637,-1350.77,0.00014465,3]
[330755953,1719755539648,-500.0,0.00014465,3]
[330755954,1719755539658,-500.0,0.00014465,3]
[330755955,1719755539667,-708.48,0.00014465,3]
[330755956,1719755539679,-1350.77,0.00014575,3]
[330755957,1719755539689,-500.0,0.00014575,3]
[330755958,1719755539698,-500.0,0.00014575,3]
[330755959,1719755539707,-708.48,0.00014575,3]
[330755960,1719755539717,-500.0,0.0001465,3]
[330755961,1719755539727,-500.0,0.00014684,3]
[330755962,1719755539737,-708.48,0.00014684,3]
[330755963,1719755539746,-500.0,0.00014684,3]
[330755964,1719755539755,-1350.77,0.00014684,3]
[330755965,1719755539765,-500.0,0.0001476,3]
[330755966,1719755539775,-2230.55993203,0.00014794,3]
[330755967,1719755539785,-500.0,0.00014794,3]
[330755968,1719755539794,-708.48,0.00014794,3]
[330755969,1719755539803,-500.0,0.0001487,3]
[330755970,1719755539814,-2577.34,0.00014904,3]
[330755971,1719755539823,-545.34999999,0.00014979,3]
[330755972,1719755539832,-2577.34,0.00015013,3]
[330755973,1719755539842,-516.98,0.00015123,3]
[330755974,1719755539851,-664.84,0.00015123,3]
[330755975,1719755539861,-2577.34,0.00015123,3]
[330755976,1719755539871,-516.98,0.00015232,3]
[330755977,1719755539880,-664.84,0.00015232,3]
[330755978,1719755539890,-516.98,0.00015342,3]
[330755979,1719755539899,-664.84,0.00015342,3]
[330755980,1719755539909,-516.98,0.00015452,3]
[330755981,1719755539918,-664.84,0.00015452,3]
[330755982,1719755539928,-136.50314597,0.00015561,3]
[330755983,1719755539937,-593.15,0.00015561,3]
[330755984,1719755539949,-690.44,0.00015561,3]
[330755985,1719755539958,-502.26,0.00015561,3]
[330755986,1719755539968,-500.0,0.00015561,3]
[330755987,1719755539977,-500.0,0.00015561,3]
[330755988,1719755539990,-757.41,0.00015561,3]
[330755989,1719755539999,-500.0,0.00015561,3]
[330755990,1719755540010,-715.47,0.00015561,3]
[330755991,1719755540020,-621.83,0.00015561,3]
[330755992,1719755540029,-500.0,0.00015561,3]
[330755993,1719755540038,-500.0,0.00015561,3]
[330755994,1719755540047,-571.76,0.00015561,3]
[330755995,1719755540055,-705.69,0.00015561,3]
[330755996,1719755540063,-500.0,0.00015561,3]
[330755997,1719755540073,-532.86,0.00015561,3]
[330755998,1719755540083,-545.32,0.00015561,3]
[330755999,1719755540093,-675.41,0.00015561,3]
[330756000,1719755540103,-581.61,0.00015561,3]
[330756001,1719755540112,-476.23,0.00015561,3]
[330756002,1719755540122,-500.0,0.00015561,3]
[330756003,1719755540132,-577.38,0.00015561,3]
[330756004,1719755540142,-663.09,0.00015561,3]
[330756005,1719755540151,-939.6,0.00015561,3]
[330756006,1719755540161,-500.0,0.00015561,3]
[330756007,1719755540171,-500.0,0.00015561,3]
[330756008,1719755540180,-540.81,0.00015561,3]
[330756009,1719755540190,-718.0,0.00015561,3]
[330756010,1719755540199,-574.88,0.00015561,3]
[330756011,1719755540209,-652.08,0.00015561,3]
[330756012,1719755540218,-695.25,0.00015561,3]
[330756013,1719755540227,-920.11,0.00015561,3]
[330756014,1719755540239,-605.83,0.00015561,3]
[330756015,1719755540248,-510.24,0.00015561,3]
[330756016,1719755540257,-677.83,0.00015561,3]
[330756017,1719755540266,-581.28,0.00015561,3]
[330756018,1719755540276,-812.74,0.00015561,3]
[330756019,1719755540286,-701.39,0.00015561,3]
[330756020,1719755540295,-620.73,0.00015561,3]
[330756021,1719755540305,-297.9,0.00015561,3]
[330756022,1719755540315,-500.0,0.00015561,3]
[330756023,1719755540324,-553.86,0.00015561,3]
[330756024,1719755540333,-621.88,0.00015561,3]
[330756025,1719755540342,-237.22,0.00015561,3]
[330756026,1719755540351,-500.0,0.00015561,3]
[330756027,1719755540438,-176.43,0.00015561,3]
[330756028,1719755540447,-612.92,0.00015561,3]
[330756029,1719755540455,-500.0,0.00015561,3]
[330756030,1719755540464,-681.93,0.00015561,3]
[330756031,1719755540473,-562.52,0.00015561,3]
[330756032,1719755540484,-757.31,0.00015561,3]
[330756033,1719755540493,-738.1,0.00015561,3]
[330756034,1719755540502,-631.07,0.00015561,3]
[330756035,1719755540511,-656.95,0.00015561,3]
[330756036,1719755540519,-561.72,0.00015561,3]
[330756037,1719755540529,-576.94,0.00015561,3]
[330756038,1719755540538,-500.0,0.00015561,3]
[330756039,1719755540546,-513.03,0.00015561,3]
[330756040,1719755540555,-500.0,0.00015561,3]
[330756041,1719755540564,-748.82,0.00015561,3]
[330756042,1719755540574,-500.0,0.00015561,3]
[330756043,1719755540583,-500.0,0.00015561,3]
[330756044,1719755540592,-851.99,0.00015561,3]
[330756045,1719755540606,-590.03,0.00015561,3]
[330756046,1719755540614,-704.42,0.00015561,3]
[330756047,1719755540623,-525.63,0.00015561,3]
[330756048,1719755540633,-1993.43,0.00015561,3]
[330756049,1719755540642,-833.5,0.00015561,3]
[330756050,1719755540652,-500.0,0.00015561,3]
[330756051,1719755540661,-500.0,0.00015561,3]
[330756052,1719755540671,-500.0,0.00015561,3]
[330756053,1719755540682,-500.0,0.00015561,3]
[330756054,1719755540691,-500.0,0.00015561,3]
[330756055,1719755540700,-664.06,0.00015561,3]
[330756056,1719755540709,-519.91,0.00015561,3]
[330756057,1719755540719,-500.0,0.00015561,3]
[330756058,1719755540728,-680.22,0.00015561,3]
[330756059,1719755540739,-763.34,0.00015561,3]
[330756060,1719755540748,-502.66,0.00015561,3]
[330756061,1719755540758,-383.52,0.00015561,3]
[330756062,1719755540768,-726.36,0.00015561,3]
[330756063,1719755540777,-657.33,0.00015561,3]
[330756064,1719755540786,-588.22,0.00015561,3]
[330756065,1719755540795,-1038.06,0.00015561,3]
[330756066,1719755540805,-581.82,0.00015561,3]
[330756067,1719755540814,-500.0,0.00015561,3]
[330756068,1719755540823,-500.0,0.00015561,3]
[330756069,1719755540834,-500.0,0.00015561,3]
[330756070,1719755540843,-500.0,0.00015561,3]
[330756071,1719755540853,-871.16,0.00015561,3]
[330756072,1719755540862,-435.49,0.00015561,3]
[330756073,1719755540872,-1237.1,0.00015561,3]
[330756074,1719755540882,-298.05,0.00015561,3]
[330756075,1719755540891,-647.7,0.00015561,3]
[330756076,1719755540900,-978.48,0.00015561,3]
[330756077,1719755540910,-515.55,0.00015561,3]
[330756078,1719755540919,-503.58,0.00015561,3]
[330756079,1719755540929,-500.0,0.00015561,3]
[330756080,1719755540938,-568.53,0.00015561,3]
[330756081,1719755540947,-731.31,0.00015561,3]
[330756082,1719755540956,-727.04,0.00015561,3]
[330756083,1719755540966,-845.38,0.00015561,3]
[330756084,1719755540975,-653.03,0.00015561,3]
[330756085,1719755540985,-680.8,0.00015561,3]
[330756086,1719755540995,-518.38,0.00015561,3]
[330756087,1719755541007,-1020.54,0.00015561,3]
[330756088,1719755541017,-500.0,0.00015561,3]
[330756089,1719755541026,-1124.32,0.00015561,3]
[330756090,1719755541036,-500.0,0.00015561,3]
[330756091,1719755541047,-786.17,0.00015561,3]
[330756092,1719755541056,-582.78,0.00015561,3]
[330756093,1719755541066,-544.15,0.00015561,3]
[330756094,1719755541076,-500.0,0.00015561,3]
[330756095,1719755541085,-613.82,0.00015561,3]
[330756096,1719755541095,-4117.59,0.00015561,3]
[330756097,1719755541104,-766.18,0.00015561,3]
[330756098,1719755541114,-842.1,0.00015561,3]
[330756099,1719755541123,-500.0,0.00015561,3]
[330756100,1719755541132,-500.0,0.00015561,3]
[330756101,1719755541141,-500.0,0.00015561,3]
[330756102,1719755541150,-933.76,0.00015561,3]
[330756103,1719755541160,-1403.52,0.00015561,3]
[330756104,1719755541169,-534.11,0.00015561,3]
[330756105,1719755541178,-500.0,0.00015561,3]
[330756106,1719755541187,-500.0,0.00015561,3]
[330756107,1719755541197,-648.58,0.00015561,3]
[330756108,1719755541206,-668.63,0.00015561,3]
[330756109,1719755541215,-518.15,0.00015561,3]
[330756110,1719755541225,-1137.4,0.00015561,3]
[330756111,1719755541235,-750.23,0.00015561,3]
[330756112,1719755541245,-565.47,0.00015561,3]
[330756113,1719755541254,-500.0,0.00015561,3]
[330756114,1719755541264,-502.48,0.00015561,3]
[330756115,1719755541274,-905.38,0.00015561,3]
[330756116,1719755541283,-964.26,0.00015561,3]
[330756117,1719755541292,-762.19,0.00015561,3]
[330756118,1719755541302,-500.0,0.00015561,3]
[330756119,1719755541311,-500.0,0.00015561,3]
[330756120,1719755541321,-267.64,0.00015561,3]
[330756121,1719755541330,-662.1,0.00015561,3]
[330756122,1719755541340,-1355.12,0.00015561,3]
[330756123,1719755541349,-765.23,0.00015561,3]
[330756124,1719755541358,-690.29,0.00015561,3]
[330756125,1719755541368,-877.24,0.00015561,3]
[330756126,1719755541377,-713.88,0.00015561,3]
[330756127,1719755541386,-500.0,0.00015561,3]
[330756128,1719755541395,-500.0,0.00015561,3]
[330756129,1719755541405,-500.0,0.00015561,3]
[330756130,1719755541414,-639.03,0.00015561,3]
[330756131,1719755541423,-1457.02,0.00015561,3]
[330756132,1719755541433,-1059.53,0.00015561,3]
[330756133,1719755541442,-737.63,0.00015561,3]
[330756134,1719755541452,-1349.88,0.00015561,3]
[330756135,1719755541461,-1241.5,0.00015561,3]
[330756136,1719755541471,-561.34,0.00015561,3]
[330756137,1719755541482,-604.72,0.00015561,3]
[330756138,1719755541491,-269.13781189,0.00015561,3]
[330756139,1719755541500,-500.0,0.00015561,3]
[330756140,1719755541509,-764.6,0.00015561,3]
[330756141,1719755541519,-660.46,0.00015561,3]
[330756142,1719755541528,-604.79,0.00015561,3]
[330756143,1719755541541,-905.53,0.00015561,3]
[330756144,1719755541550,-957.39,0.00015561,3]
[330756145,1719755541559,-500.0,0.00015561,3]
[330756146,1719755541568,-526.22,0.00015561,3]
[330756147,1719755541578,-500.0,0.00015561,3]
[330756148,1719755541586,-622.84,0.00015561,3]
[330756149,1719755541600,-1277.66,0.00015561,3]
[330756150,1719755541609,-500.0,0.00015561,3]
[330756151,1719755541619,-707.52,0.00015561,3]
[330756152,1719755541628,-500.0,0.00015561,3]
[330756153,1719755541638,-616.94,0.00015561,3]
[330756154,1719755541648,-1304.99,0.00015561,3]
[330756155,1719755541657,-1641.91,0.00015561,3]
[330756156,1719755541667,-620.52,0.00015561,3]
[330756157,1719755541677,-500.0,0.00015561,3]
[330756158,1719755541687,-500.0,0.00015561,3]
[330756159,1719755541696,-500.0,0.00015561,3]
[330756160,1719755541706,-832.16,0.00015561,3]
[330756161,1719755541716,-504.24,0.00015561,3]
[330756162,1719755541725,-614.4,0.00015561,3]
[330756163,1719755541735,-721.33,0.00015561,3]
[330756164,1719755541744,-700.83,0.00015561,3]
[330756165,1719755541753,-1044.88,0.00015561,3]
[330756166,1719755541764,-500.0,0.00015561,3]
[330756167,1719755541773,-500.0,0.00015561,3]
[330756168,1719755541783,-500.0,0.00015561,3]
[330756169,1719755541792,-507.13,0.00015561,3]
[330756170,1719755541801,-500.0,0.00015561,3]
[330756171,1719755541811,-891.0,0.00015561,3]
[330756172,1719755541820,-517.3,0.00015561,3]
[330756173,1719755541829,-656.4,0.00015561,3]
[330756174,1719755541839,-881.23,0.00015561,3]
[330756175,1719755541848,-689.57,0.00015561,3]
[330756176,1719755541857,-957.05,0.00015561,3]
[330756177,1719755541867,-507.92,0.00015561,3]
[330756178,1719755541876,-1173.05,0.00015561,3]
[330756179,1719755541885,-544.05,0.00015561,3]
[330756180,1719755541894,-703.63,0.00015561,3]
[330756181,1719755541904,-592.64,0.00015561,3]
[330756182,1719755541913,-500.0,0.00015561,3]
[330756183,1719755541922,-759.3,0.00015561,3]
[330756184,1719755541931,-598.1,0.00015561,3]
[330756185,1719755541941,-641.73,0.00015561,3]
[330756186,1719755541950,-544.61,0.00015561,3]
[330756187,1719755541960,-910.64,0.00015561,3]
[330756188,1719755541969,-590.62,0.00015561,3]
[330756189,1719755541978,-689.38,0.00015561,3]
[330756190,1719755541991,-661.02,0.00015561,3]
[330756191,1719755542001,-2904.97,0.00015561,3]
[330756192,1719755542012,-500.0,0.00015561,3]
[330756193,1719755542026,-507.72,0.00015561,3]
[330756194,1719755542036,-554.44,0.00015561,3]
[330756195,1719755542045,-500.0,0.00015561,3]
[330756196,1719755542055,-578.69,0.00015561,3]
[330756197,1719755542064,-1290.65,0.00015561,3]
[330756198,1719755542073,-655.08,0.00015561,3]
[330756199,1719755542083,-812.49,0.00015561,3]
[330756200,1719755542092,-1361.14,0.00015561,3]
[330756201,1719755542102,-634.96,0.00015561,3]
[330756202,1719755542111,-500.0,0.00015561,3]
[330756203,1719755542121,-896.65,0.00015561,3]
[330756204,1719755542130,-787.92,0.00015561,3]
[330756205,1719755542140,-500.0,0.00015561,3]
[330756206,1719755542149,-500.0,0.00015561,3]
[330756207,1719755542159,-584.33,0.00015561,3]
[330756208,1719755542168,-1488.55,0.00015561,3]
[330756209,1719755542178,-1089.27,0.00015561,3]
[330756210,1719755542187,-561.6,0.00015561,3]
[330756211,1719755542197,-500.0,0.00015561,3]
[330756212,1719755542206,-516.98,0.00015561,3]
[330756213,1719755542215,-664.84,0.00015561,3]
[330756214,1719755542225,-1135.43,0.00015598,3]
[330756215,1719755542237,-1617.34,0.00015598,3]
[330756216,1719755542246,-1220.92,0.00015598,3]
[330756217,1719755542255,-529.92,0.00015598,3]
[330756218,1719755542264,-1337.79,0.00015598,3]
[330756219,1719755542273,-1162.53,0.00015598,3]
[330756220,1719755542282,-3818.29,0.000156,3]
[330756221,1719755542291,-2148.15,0.00015628,3]
[330756222,1719755542301,-1274.99,0.00015628,3]
[330756223,1719755542311,-1079.15,0.00015637,3]
[330756224,1719755542320,-1590.65,0.00015637,3]
[330756225,1719755542329,-1459.73,0.00015637,3]
[330756226,1719755542338,-911.31,0.00015637,3]
[330756227,1719755542348,-592.8,0.00015637,3]
[330756228,1719755542358,-830.15,0.00015637,3]
[330756229,1719755542367,-1114.89,0.00015637,3]
[330756230,1719755542377,-500.0,0.00015637,3]
[330756231,1719755542387,-967.5,0.00015637,3]
[330756232,1719755542396,-640.83,0.00015637,3]
[330756233,1719755542406,-500.0,0.00015637,3]
[330756234,1719755542415,-500.0,0.00015671,3]
[330756235,1719755542424,-1492.12,0.00015671,3]
[330756236,1719755542434,-526.54,0.00015671,3]
[330756237,1719755542443,-518.76,0.00015671,3]
[330756238,1719755542452,-554.07,0.00015671,3]
[330756239,1719755542462,-449.24,0.00015671,3]
[330756240,1719755542471,-500.0,0.00015671,3]
[330756241,1719755542482,-500.0,0.00015671,3]
[330756242,1719755542491,-466.5,0.00015671,3]
[330756243,1719755542500,-500.0,0.00015671,3]
[330756244,1719755542509,-500.0,0.00015671,3]
[330756245,1719755542518,-1182.32,0.00015671,3]
[330756246,1719755542527,-500.0,0.00015671,3]
[330756247,1719755542536,-500.0,0.00015671,3]
[330756248,1719755542546,-500.0,0.00015671,3]
[330756249,1719755542555,-505.0,0.00015671,3]
[330756250,1719755542564,-500.0,0.00015671,3]
[330756251,1719755542574,-561.37,0.00015671,3]
[330756252,1719755542584,-500.0,0.00015671,3]
[330756253,1719755542594,-500.0,0.00015671,3]
[330756254,1719755542607,-500.0,0.00015671,3]
[330756255,1719755542616,-900.1,0.00015671,3]
[330756256,1719755542626,-694.23,0.00015671,3]
[330756257,1719755542636,-500.0,0.00015671,3]
[330756258,1719755542645,-554.48,0.00015671,3]
[330756259,1719755542655,-500.0,0.00015671,3]
[330756260,1719755542665,-500.0,0.00015671,3]
[330756261,1719755542675,-500.0,0.00015671,3]
[330756262,1719755542685,-500.0,0.00015671,3]
[330756263,1719755542694,-537.73,0.00015671,3]
[330756264,1719755542704,-500.0,0.00015671,3]
[330756265,1719755542713,-500.0,0.00015671,3]
[330756266,1719755542722,-593.15,0.00015671,3]
[330756267,1719755542733,-690.44,0.00015671,3]
[330756268,1719755542742,-502.26,0.00015671,3]
[330756269,1719755542752,-500.0,0.00015671,3]
[330756270,1719755542762,-500.0,0.00015671,3]
[330756271,1719755542772,-757.41,0.00015671,3]
[330756272,1719755542782,-500.0,0.00015671,3]
[330756273,1719755542792,-715.47,0.00015671,3]
[330756274,1719755542801,-621.83,0.00015671,3]
[330756275,1719755542811,-500.0,0.00015671,3]
[330756276,1719755542820,-500.0,0.00015671,3]
[330756277,1719755542830,-571.76,0.00015671,3]
[330756278,1719755542839,-705.69,0.00015671,3]
[330756279,1719755542849,-500.0,0.00015671,3]
[330756280,1719755542858,-532.86,0.00015671,3]
[330756281,1719755542868,-545.32,0.00015671,3]
[330756282,1719755542877,-675.41,0.00015671,3]
[330756283,1719755542887,-581.61,0.00015671,3]
[330756284,1719755542896,-500.0,0.00015671,3]
[330756285,1719755542906,-577.38,0.00015671,3]
[330756286,1719755542915,-663.09,0.00015671,3]
[330756287,1719755542925,-939.6,0.00015671,3]
[330756288,1719755542934,-500.0,0.00015671,3]
[330756289,1719755542943,-500.0,0.00015671,3]
[330756290,1719755542952,-540.81,0.00015671,3]
[330756291,1719755542962,-718.0,0.00015671,3]
[330756292,1719755542971,-574.88,0.00015671,3]
[330756293,1719755542980,-652.08,0.00015671,3]
[330756294,1719755542991,-695.25,0.00015671,3]
[330756295,1719755543000,-920.11,0.00015671,3]
[330756296,1719755543010,-605.83,0.00015671,3]
[330756297,1719755543020,-510.24,0.00015671,3]
[330756298,1719755543029,-677.83,0.00015671,3]
[330756299,1719755543039,-581.28,0.00015671,3]
[330756300,1719755543048,-812.74,0.00015671,3]
[330756301,1719755543057,-701.39,0.00015671,3]
[330756302,1719755543066,-620.73,0.00015671,3]
[330756303,1719755543076,-500.0,0.00015671,3]
[330756304,1719755543086,-553.86,0.00015671,3]
[330756305,1719755543095,-621.88,0.00015671,3]
[330756306,1719755543104,-500.0,0.00015671,3]
[330756307,1719755543114,-612.92,0.00015671,3]
[330756308,1719755543123,-500.0,0.00015671,3]
[330756309,1719755543132,-681.93,0.00015671,3]
[330756310,1719755543141,-562.52,0.00015671,3]
[330756311,1719755543152,-757.31,0.00015671,3]
[330756312,1719755543163,-738.1,0.00015671,3]
[330756313,1719755543172,-631.07,0.00015671,3]
[330756314,1719755543182,-656.95,0.00015671,3]
[330756315,1719755543191,-561.72,0.00015671,3]
[330756316,1719755543201,-576.94,0.00015671,3]
[330756317,1719755543210,-500.0,0.00015671,3]
[330756318,1719755543220,-500.0,0.00015671,3]
[330756319,1719755543230,-748.82,0.00015671,3]
[330756320,1719755543240,-500.0,0.00015671,3]
[330756321,1719755543250,-513.03,0.00015671,3]
[330756322,1719755543259,-500.0,0.00015671,3]
[330756323,1719755543269,-851.99,0.00015671,3]
[330756324,1719755543278,-590.03,0.00015671,3]
[330756325,1719755543289,-704.42,0.00015671,3]
[330756326,1719755543298,-525.63,0.00015671,3]
[330756327,1719755543308,-1993.43,0.00015671,3]
[330756328,1719755543318,-833.5,0.00015671,3]
[330756329,1719755543327,-326.11,0.00015671,3]
[330756330,1719755543337,-500.0,0.00015671,3]
[330756331,1719755543346,-500.0,0.00015671,3]
[330756332,1719755543356,-500.0,0.00015671,3]
[330756333,1719755543365,-500.0,0.00015671,3]
[330756334,1719755543374,-664.06,0.00015671,3]
[330756335,1719755543384,-519.91,0.00015671,3]
[330756336,1719755543394,-500.0,0.00015671,3]
[330756337,1719755543404,-680.22,0.00015671,3]
[330756338,1719755543414,-763.34,0.00015671,3]
[330756339,1719755543423,-69.05427288,0.00015671,3]